fUST/lending_fUST_20240112
["ID","MTS","AMOUNT","RATE_DAILY","PERIOD"]
[311299333,1705048246257,-500.0,0.0002957,2]
[311299334,1705048246266,-500.0,0.0002957,2]
[311299335,1705048246275,-500.0,0.0002957,2]
[311299336,1705048246285,-505.14388722,0.0002957,2]
[311299337,1705048246294,-500.0,0.0002957,2]
[311299338,1705048246303,-398.04807974,0.0002957,2]
[311299339,1705048246312,-500.0,0.0002957,2]
[311299340,1705048246322,-500.0,0.0002957,2]
[311299341,1705048246331,-645.29078378,0.0002957,2]
[311299342,1705048246418,-524.78685357,0.0002957,2]
[311299343,1705048246427,-689.75,0.00029589,2]
[311299344,1705048246437,-798.81,0.00029589,2]
[311299345,1705048246446,-1872.03,0.00029589,2]
[311299346,1705048246455,-500.0,0.00029589,2]
[311299347,1705048246466,-500.0,0.00029589,2]
[311299348,1705048246475,-9878.13,0.00029589,2]
[311299349,1705048246484,-500.0,0.00029589,2]
[311299350,1705048246493,-500.0,0.00029589,2]
[311299351,1705048246502,-5678.27,0.00029589,2]
[311299352,1705048246511,-2123.64,0.00029589,2]
[311299353,1705048246520,-500.0,0.00029589,2]
[311299354,1705048246530,-1004.19,0.00029589,2]
[311299355,1705048246544,-500.0,0.00029589,2]
[311299356,1705048246554,-872.05,0.00029589,2]
[311299357,1705048246564,-514.48,0.00029589,2]
[311299358,1705048246574,-609.71,0.00029589,2]
[311299359,1705048246583,-189.04176249,0.0002968,2]
[311299360,1705048246593,-500.0,0.00029688,2]
[311299361,1705048246603,-500.0,0.00029688,2]
[311299362,1705048246612,-500.0,0.00029688,2]
[311299363,1705048246621,-500.0,0.00029688,2]
[311299364,1705048246630,-500.0,0.00029688,2]
[311299365,1705048246640,-500.0,0.00029688,2]
[311299366,1705048246649,-500.0,0.00029688,2]
[311299367,1705048246658,-383.11577033,0.00029688,2]
[311299368,1705048246668,-500.0,0.00029688,2]
[311299369,1705048246677,-500.0,0.00029688,2]
[311299370,1705048246685,-386.69923509,0.00029688,2]
[311299371,1705048246694,-252.385167,0.00029689,2]
[311299372,1705048246704,-252.385167,0.00029689,2]
[311299373,1705048246715,-254.3791948,0.00029701,3]
[311299374,1705048246725,-189.04176249,0.00029736,2]
[311299375,1705048246734,-197.246188,0.00029763,2]
[311299376,1705048246743,-189.04176249,0.00029786,2]
[311299377,1705048246752,-119717.43640736,0.000298,2]
[311299378,1705048246762,-537.2506109,0.00029821,2]
[311299379,1705048246771,-508.50466133,0.00029821,2]
[311299380,1705048246780,-504.35288983,0.00029821,2]
[311299381,1705048246789,-504.01159965,0.00029821,2]
[311299382,1705048246799,-500.0,0.00029821,2]
[311299383,1705048246808,-504.98952588,0.00029821,2]
[311299384,1705048246817,-500.0,0.00029821,2]
[311299385,1705048246826,-505.0005349,0.00029821,2]
[311299386,1705048246837,-501.43,0.00029821,2]
[311299387,1705048246847,-500.0,0.00029821,2]
[311299388,1705048246857,-577.42,0.00029821,2]
[311299389,1705048246866,-1027.4,0.00029821,2]
[311299390,1705048246875,-500.0,0.00029821,2]
[311299391,1705048246884,-619.46275449,0.00029821,2]
[311299392,1705048246894,-516.26938876,0.00029821,2]
[311299393,1705048246904,-500.0,0.00029821,2]
[311299394,1705048246913,-500.0,0.00029821,2]
[311299395,1705048246923,-500.0,0.00029821,2]
[311299396,1705048246932,-500.0,0.00029821,2]
[311299397,1705048246941,-2669.35,0.00029821,2]
[311299398,1705048246950,-11133.26,0.00029821,2]
[311299399,1705048246959,-1168.89,0.00029821,2]
[311299400,1705048246968,-523.10019394,0.00029844,2]
[311299401,1705048246979,-387.36439512,0.00029844,2]
[311299402,1705048246988,-503.33954714,0.00029844,2]
[311299403,1705048246997,-500.0,0.00029844,2]
[311299404,1705048247007,-500.0,0.00029844,2]
[311299405,1705048247016,-500.0,0.00029844,2]
[311299406,1705048247025,-502.04857089,0.00029844,2]
[311299407,1705048247034,-500.0,0.00029844,2]
[311299408,1705048247043,-500.0,0.00029844,2]
[311299409,1705048247053,-689.75,0.00029863,2]
[311299410,1705048247062,-798.81,0.00029863,2]
[311299411,1705048247071,-1872.03,0.00029863,2]
[311299412,1705048247081,-500.0,0.00029863,2]
[311299413,1705048247090,-500.0,0.00029863,2]
[311299414,1705048247099,-9878.13,0.00029863,2]
[311299415,1705048247108,-500.0,0.00029863,2]
[311299416,1705048247117,-500.0,0.00029863,2]
[311299417,1705048247127,-5678.27,0.00029863,2]
[311299418,1705048247137,-2123.64,0.00029863,2]
[311299419,1705048247147,-500.0,0.00029863,2]
[311299420,1705048247156,-1004.19,0.00029863,2]
[311299421,1705048247165,-500.0,0.00029863,2]
[311299422,1705048247175,-872.05,0.00029863,2]
[311299423,1705048247185,-514.48,0.00029863,2]
[311299424,1705048247194,-609.71,0.00029863,2]
[311299425,1705048247204,-167.10606654,0.00029953,2]
[311299426,1705048247215,-177.396824,0.00029954,2]
[311299427,1705048247224,-155.393512,0.00029954,2]
[311299428,1705048247233,-209.371237,0.00029954,2]
[311299429,1705048247242,-165.78394,0.00029954,2]
[311299430,1705048247252,-172.125174,0.00029954,2]
[311299431,1705048247261,-178.40293,0.00029954,2]
[311299432,1705048247270,-164.641066,0.00029954,2]
[311299433,1705048247280,-322.57910218,0.00029998,2]
[311299434,1705048247289,-3070.5357447,0.00029998,2]
[311299435,1705048247299,-199.70646134,0.00029998,2]
[311299436,1705048247309,-740.84179056,0.00029998,2]
[311299437,1705048247319,-1732.22038178,0.00029998,2]
[311299438,1705048247328,-868.91393099,0.00029998,2]
[311299439,1705048247337,-332.33085601,0.00029998,2]
[311299440,1705048247346,-331.90052711,0.00029998,2]
[311299441,1705048247355,-732.80598564,0.00029999,2]
[311299442,1705048247364,-257.40326984,0.0003,4]
[311299443,1705048247375,-5499.99999602,0.0003,2]
[311299444,1705048247384,-155.0341,0.0003,4]
[311299445,1705048247393,-3937.80281635,0.0003,2]
[311299446,1705048247403,-622.25479523,0.0003,14]
[311299447,1705048247412,-300.0,0.0003,14]
[311299448,1705048247422,-10529.66648615,0.0003,4]
[311299449,1705048247430,-463.55854526,0.0003,4]
[311299450,1705048247440,-6976.66580817,0.0003,4]
[311299451,1705048247449,-2152.16950054,0.0003,4]
[311299452,1705048247461,-639.95393342,0.0003,4]
[311299453,1705048247470,-409.93497714,0.0003,2]
[311299454,1705048247480,-155.04496304,0.0003,4]
[311299455,1705048247489,-649.89024252,0.0003,4]
[311299456,1705048247499,-2448.49757495,0.0003,2]
[311299457,1705048247507,-300.0,0.0003,4]
[311299458,1705048247517,-350.73379528,0.0003,2]
[311299459,1705048247526,-4453.4726525,0.0003,4]
[311299460,1705048247537,-3716.88702581,0.0003,4]
[311299461,1705048247547,-1212.48495761,0.0003,2]
[311299462,1705048247556,-12526.78297323,0.0003,2]
[311299463,1705048247566,-500.0,0.0003,3]
[311299464,1705048247576,-1500.0,0.0003,2]
[311299465,1705048247585,-1212.48495761,0.0003,2]
[311299466,1705048247594,-239.0,0.0003,2]
[311299467,1705048247604,-153.70696813,0.00030035,5]
[311299468,1705048247612,-252.385167,0.00030036,2]
[311299469,1705048247621,-252.385167,0.00030036,2]
[311299470,1705048247631,-38393.65377577,0.00030036,3]
[311299471,1705048247640,-155.09195823,0.00030095,4]
[311299472,1705048247653,-2746.20575269,0.00030095,2]
[311299473,1705048247663,-301.18213313,0.00030095,4]
[311299474,1705048247673,-201.39673575,0.00030095,2]
[311299475,1705048247682,-500.0,0.00030095,2]
[311299476,1705048247691,-501.43,0.00030095,2]
[311299477,1705048247701,-502.58332383,0.00030095,2]
[311299478,1705048247714,-577.42,0.00030095,2]
[311299479,1705048247723,-1027.4,0.00030095,2]
[311299480,1705048247732,-505.57069525,0.00030095,2]
[311299481,1705048247742,-502.52314927,0.00030095,2]
[311299482,1705048247751,-500.0,0.00030095,2]
[311299483,1705048247761,-500.0,0.00030095,2]
[311299484,1705048247770,-2669.35,0.00030095,2]
[311299485,1705048247779,-11133.26,0.00030095,2]
[311299486,1705048247788,-1168.89,0.00030095,2]
[311299487,1705048247797,-275.63387541,0.00030096,7]
[311299488,1705048247807,-31445.01395194,0.00030097,15]
[311299489,1705048247952,-610.31,0.00028219,2]
[311299490,1705048247965,-3706.7215142,0.00030097,15]
[311299491,1705048248173,-500.0,0.00027397,2]
[311299492,1705048248182,-499.16923081,0.00027671,2]
[311299493,1705048248334,-0.83076919,0.00027671,2]
[311299494,1705048248344,-500.0,0.00027945,2]
[311299495,1705048248353,-499.16923081,0.00028219,2]
[311299496,1705048248384,-0.83076919,0.00028219,2]
[311299497,1705048248395,-610.31,0.00028493,2]
[311299498,1705048248405,-610.31,0.00028767,2]
[311299499,1705048248414,-610.31,0.00029041,2]
[311299500,1705048248423,-165.23923081,0.00029273,2]
[311299501,1705048248435,-334.76076919,0.00029273,2]
[311299502,1705048248444,-610.31,0.00029315,2]
[311299503,1705048248453,-542.93787856,0.00029547,2]
[311299504,1705048248464,-610.31,0.00029589,2]
[311299505,1705048248473,-610.31,0.00029863,2]
[311299506,1705048248482,-151.69317899,0.0002994,2]
[311299507,1705048248491,-2462.70706908,0.00030097,15]
[311299508,1705048248612,-4577.0,0.00030097,15]
[311299511,1705048506136,506.99314472,0.00027397,30]
[311299695,1705049439811,-244.92582195,0.000199,2]
[311299697,1705049439821,-200.0,0.0002,2]
[311299698,1705049439830,-156.20554179,0.0002,2]
[311299699,1705049439841,-2093.76186828,0.00023,2]
[311299700,1705049439851,-331.868677,0.00023172,2]
[311299701,1705049439861,-169.81008003,0.00023982,2]
[311299702,1705049439872,-4005.78937176,0.00024073,2]
[311299703,1705049439881,-4323.328839,0.00024074,2]
[311299704,1705049439890,-4323.328839,0.00024074,2]
[311299705,1705049439900,-4323.328839,0.00024074,2]
[311299706,1705049439909,-4323.328839,0.00024074,2]
[311299707,1705049439919,-4323.328839,0.00024074,2]
[311299708,1705049439928,-614.24237866,0.00024081,2]
[311299709,1705049439937,-171.185352,0.00024216,2]
[311299710,1705049439948,-2330.0275674,0.00024635,2]
[311299711,1705049439957,-155.07598723,0.0002504,2]
[311299712,1705049439966,-171.185352,0.00025041,2]
[311299713,1705049439976,-159.2031486,0.00025479,2]
[311299714,1705049439985,-171.185352,0.00025866,2]
[311299715,1705049439996,-1949.12908924,0.00026285,2]
[311299716,1705049440005,-227.78637671,0.00026286,2]
[311299717,1705049440014,-171.185352,0.00026692,2]
[311299718,1705049440024,-13647.04752515,0.00027297,2]
[311299719,1705049440033,-197.246188,0.00027297,2]
[311299720,1705049440043,-9100.04106185,0.000273,4]
[311299721,1705049440052,-3301.09,0.00027387,3]
[311299722,1705049440061,-2750.91,0.00027387,3]
[311299723,1705049440070,-332.33085601,0.00027395,2]
[311299724,1705049440079,-732.80598564,0.00027395,2]
[311299725,1705049440089,-331.90052711,0.00027395,2]
[311299726,1705049440099,-868.91393099,0.00027395,2]
[311299727,1705049440110,-199.70646134,0.00027395,2]
[311299728,1705049440120,-740.84179056,0.00027395,2]
[311299729,1705049440129,-1732.22038178,0.00027395,2]
[311299730,1705049440139,-322.57910218,0.00027395,2]
[311299731,1705049440148,-301.18213313,0.00027396,2]
[311299732,1705049440157,-3070.5357447,0.00027396,2]
[311299733,1705049440166,-500.0,0.00027397,2]
[311299734,1705049440175,-501.52502297,0.00027397,2]
[311299735,1705049440185,-500.0,0.00027397,2]
[311299736,1705049440197,-500.0,0.00027397,2]
[311299737,1705049440206,-502.97945637,0.00027397,2]
[311299738,1705049440217,-2080.28320628,0.00027397,2]
[311299739,1705049440227,-3314.65607422,0.00027397,2]
[311299740,1705049440236,-500.0,0.00027397,2]
[311299741,1705049440248,-1822.38176649,0.00027397,2]
[311299742,1705049440257,-300.0,0.00027397,2]
[311299743,1705049440267,-500.0,0.00027397,2]
[311299744,1705049440277,-155.09305583,0.00027397,2]
[311299745,1705049440288,-500.0,0.00027397,2]
[311299746,1705049440298,-503.85552266,0.00027397,2]
[311299748,1705049440308,-328.13136718,0.00027397,2]
[311299749,1705049440318,-504.4668383,0.00027397,2]
[311299751,1705049440327,-500.0,0.00027397,2]
[311299752,1705049440337,-500.0,0.00027397,2]
[311299753,1705049440347,-506.8353428,0.00027397,2]
[311299754,1705049440357,-500.0,0.00027397,2]
[311299755,1705049440366,-500.0,0.00027397,2]
[311299757,1705049440376,-500.81712721,0.00027397,2]
[311299759,1705049440385,-506.17830102,0.00027397,2]
[311299761,1705049440394,-500.0,0.00027397,2]
[311299762,1705049440404,-500.0,0.00027397,2]
[311299763,1705049440413,-502.7428182,0.00027397,2]
[311299764,1705049440422,-500.0,0.00027397,2]
[311299765,1705049440431,-500.0,0.00027397,2]
[311299766,1705049440440,-500.0,0.00027397,2]
[311299767,1705049440449,-500.0,0.00027397,2]
[311299768,1705049440458,-184.13370995,0.00027397,2]
[311299769,1705049440467,-507.72720742,0.00027397,2]
[311299770,1705049440477,-165.5381675,0.00027397,2]
[311299771,1705049440486,-500.0,0.00027397,2]
[311299772,1705049440496,-500.0,0.00027397,2]
[311299773,1705049440506,-500.0,0.00027397,2]
[311299774,1705049440515,-500.0,0.00027397,2]
[311299775,1705049440525,-500.0,0.00027397,2]
[311299776,1705049440534,-500.93772388,0.00027397,2]
[311299778,1705049440543,-508.88,0.00027397,2]
[311299780,1705049440552,-500.0,0.00027397,2]
[311299782,1705049440670,-500.0,0.00027397,2]
[311299783,1705049440680,-502.36660007,0.00027397,2]
[311299784,1705049440689,-500.0,0.00027397,2]
[311299785,1705049440699,-506.48146698,0.00027397,2]
[311299786,1705049440709,-500.0,0.00027397,2]
[311299787,1705049440717,-500.0,0.00027397,2]
[311299788,1705049440727,-539.58578246,0.00027397,2]
[311299789,1705049440736,-500.0,0.00027397,2]
[311299790,1705049440747,-500.0,0.00027397,2]
[311299791,1705049440756,-500.0,0.00027397,2]
[311299792,1705049440765,-500.0,0.00027397,2]
[311299793,1705049440775,-500.0,0.00027397,2]
[311299794,1705049440784,-500.0,0.00027397,2]
[311299795,1705049440793,-500.0,0.00027397,2]
[311299796,1705049440802,-154.12710866,0.00027397,2]
[311299797,1705049440811,-214.66092546,0.00027397,2]
[311299798,1705049440820,-506.21251482,0.00027397,2]
[311299799,1705049440830,-500.0,0.00027397,2]
[311299800,1705049440839,-500.78001203,0.00027397,2]
[311299801,1705049440848,-500.0,0.00027397,2]
[311299802,1705049440857,-205.36424637,0.00027397,2]
[311299803,1705049440866,-501.72477111,0.00027397,2]
[311299804,1705049440875,-500.0,0.00027397,2]
[311299805,1705049440884,-206.39606514,0.00027397,2]
[311299806,1705049440893,-155.59,0.00027397,2]
[311299807,1705049440902,-500.0,0.00027397,2]
[311299808,1705049440912,-500.0,0.00027397,2]
[311299809,1705049440921,-500.0,0.00027397,2]
[311299810,1705049440930,-501.44182917,0.00027397,2]
[311299811,1705049440940,-500.0,0.00027397,2]
[311299812,1705049440949,-500.0,0.00027397,2]
[311299813,1705049440959,-294.04976461,0.00027397,2]
[311299814,1705049440968,-500.0,0.00027397,2]
[311299815,1705049440977,-501.60256451,0.00027397,2]
[311299816,1705049440986,-500.0,0.00027397,2]
[311299817,1705049440995,-501.28507921,0.00027397,2]
[311299818,1705049441005,-500.0,0.00027397,2]
[311299819,1705049441014,-454.87529133,0.00027397,2]
[311299820,1705049441023,-531.53090181,0.00027397,2]
[311299821,1705049441032,-500.0,0.00027397,2]
[311299822,1705049441042,-500.0,0.00027397,2]
[311299823,1705049441052,-155.13750641,0.00027397,2]
[311299824,1705049441061,-500.0,0.00027397,2]
[311299825,1705049441071,-500.0,0.00027397,2]
[311299826,1705049441080,-500.0,0.00027397,2]
[311299827,1705049441090,-195035.4327192,0.00027397,7]
[311299828,1705049441099,-449.14383856,0.00027397,2]
[311299829,1705049441108,-500.0,0.00027397,2]
[311299830,1705049441117,-247.45274419,0.00027397,2]
[311299831,1705049441126,-505.0382672,0.00027397,2]
[311299832,1705049441135,-508.16948772,0.00027397,2]
[311299834,1705049441145,-500.0,0.00027397,2]
[311299836,1705049441154,-500.0,0.00027397,2]
[311299837,1705049441163,-500.0,0.00027397,2]
[311299839,1705049441172,-529.29776367,0.00027397,2]
[311299840,1705049441181,-500.0,0.00027397,2]
[311299841,1705049441190,-506.03774952,0.00027397,2]
[311299842,1705049441199,-500.0,0.00027397,2]
[311299844,1705049441209,-500.0,0.00027397,2]
[311299845,1705049441218,-500.0,0.00027397,2]
[311299846,1705049441228,-500.0,0.00027397,2]
[311299847,1705049441237,-500.0,0.00027397,2]
[311299848,1705049441249,-500.0,0.00027397,2]
[311299849,1705049441258,-500.0,0.00027397,2]
[311299851,1705049441268,-500.0,0.00027397,2]
[311299853,1705049441277,-500.0,0.00027397,2]
[311299854,1705049441286,-460.30040941,0.00027397,2]
[311299855,1705049441295,-504.32950363,0.00027397,2]
[311299856,1705049441304,-500.0,0.00027397,2]
[311299857,1705049441313,-437.47651782,0.00027397,2]
[311299859,1705049441323,-500.0,0.00027397,2]
[311299861,1705049441332,-501.14220574,0.00027397,2]
[311299862,1705049441341,-322.80588163,0.00027397,2]
[311299863,1705049441350,-501.47730939,0.00027397,2]
[311299864,1705049441360,-282.34658644,0.00027397,2]
[311299865,1705049441370,-500.0,0.00027397,2]
[311299866,1705049441379,-355.28746192,0.00027397,2]
[311299867,1705049441389,-500.0,0.00027397,2]
[311299868,1705049441398,-514.20057059,0.00027397,2]
[311299869,1705049441407,-500.0,0.00027397,2]
[311299870,1705049441417,-500.0,0.00027397,2]
[311299871,1705049441427,-500.0,0.00027397,2]
[311299872,1705049441436,-500.0,0.00027397,2]
[311299873,1705049441445,-500.0,0.00027397,2]
[311299874,1705049441454,-500.0,0.00027397,2]
[311299875,1705049441464,-500.0,0.00027397,2]
[311299876,1705049441473,-500.0,0.00027397,2]
[311299877,1705049441482,-500.0,0.00027397,2]
[311299878,1705049441494,-500.0,0.00027397,2]
[311299879,1705049441503,-512.9996888,0.00027397,2]
[311299880,1705049441512,-550.11699991,0.00027397,2]
[311299881,1705049441521,-202.55822643,0.00027397,2]
[311299882,1705049441530,-500.27431069,0.00027397,2]
[311299883,1705049441539,-500.57720315,0.00027397,2]
[311299884,1705049441548,-500.0,0.00027397,2]
[311299885,1705049441558,-500.0,0.00027397,2]
[311299886,1705049441567,-500.0,0.00027397,2]
[311299887,1705049441576,-504.4552916,0.00027397,2]
[311299888,1705049441586,-500.0,0.00027397,2]
[311299889,1705049441595,-500.0,0.00027397,2]
[311299890,1705049441605,-501.24111188,0.00027397,2]
[311299891,1705049441614,-403.09472175,0.00027397,2]
[311299892,1705049441623,-984.59,0.00027397,2]
[311299893,1705049441632,-500.0,0.00027397,2]
[311299894,1705049441641,-509.29480607,0.00027397,2]
[311299895,1705049441651,-500.0,0.00027397,2]
[311299896,1705049441660,-500.0,0.00027397,2]
[311299897,1705049441669,-500.0,0.00027397,2]
[311299898,1705049441678,-337.43216097,0.00027397,2]
[311299899,1705049441688,-500.0,0.00027397,2]
[311299900,1705049441697,-500.0,0.00027397,2]
[311299901,1705049441707,-511.03090155,0.00027397,2]
[311299902,1705049441717,-500.0,0.00027397,2]
[311299903,1705049441726,-342.78373673,0.00027397,2]
[311299904,1705049441736,-500.0,0.00027397,2]
[311299905,1705049441749,-1326.02,0.00027397,2]
[311299906,1705049441758,-500.0,0.00027397,2]
[311299907,1705049441768,-500.0,0.00027397,2]
[311299908,1705049441777,-500.0,0.00027397,2]
[311299909,1705049441786,-500.0,0.00027397,2]
[311299910,1705049441795,-500.0,0.00027397,2]
[311299911,1705049441804,-501.95023361,0.00027397,2]
[311299912,1705049441813,-504.70562104,0.00027397,2]
[311299913,1705049441823,-506.22767674,0.00027397,2]
[311299914,1705049441832,-502.64372719,0.00027397,2]
[311299915,1705049441842,-502.95042348,0.00027397,2]
[311299916,1705049441851,-500.0,0.00027397,2]
[311299917,1705049441860,-487.35413726,0.00027397,2]
[311299918,1705049441870,-500.0,0.00027397,2]
[311299919,1705049441879,-500.0,0.00027397,2]
[311299920,1705049441888,-575.64284376,0.00027397,2]
[311299921,1705049441897,-507.25362827,0.00027397,2]
[311299922,1705049441908,-500.0,0.00027397,2]
[311299923,1705049441917,-195.4939658,0.00027397,2]
[311299924,1705049441926,-500.0,0.00027397,2]
[311299925,1705049441935,-155.00732101,0.00027397,2]
[311299926,1705049441944,-500.0,0.00027397,2]
[311299927,1705049441953,-500.0,0.00027397,2]
[311299928,1705049441962,-500.0,0.00027397,2]
[311299929,1705049441971,-500.0,0.00027397,2]
[311299930,1705049441981,-500.0,0.00027397,2]
[311299931,1705049441992,-500.0,0.00027397,2]
[311299932,1705049442003,-565.82,0.00027397,2]
[311299933,1705049442013,-500.0,0.00027397,2]
[311299934,1705049442022,-213.23093798,0.00027397,2]
[311299935,1705049442031,-500.0,0.00027397,2]
[311299936,1705049442040,-216.5781608,0.00027397,2]
[311299937,1705049442049,-500.0,0.00027397,2]
[311299938,1705049442058,-500.0,0.00027397,2]
[311299939,1705049442067,-500.0,0.00027397,2]
[311299940,1705049442076,-510.48923295,0.00027397,2]
[311299941,1705049442085,-500.0,0.00027397,2]
[311299942,1705049442094,-500.0,0.00027397,2]
[311299943,1705049442104,-500.0,0.00027397,2]
[311299944,1705049442113,-364.27366751,0.00027397,2]
[311299945,1705049442122,-423.08980733,0.00027397,2]
[311299946,1705049442131,-500.0,0.00027397,2]
[311299947,1705049442141,-500.0,0.00027397,2]
[311299948,1705049442150,-500.0,0.00027397,2]
[311299949,1705049442160,-500.0,0.00027397,2]
[311299950,1705049442169,-500.0,0.00027397,2]
[311299951,1705049442179,-500.0,0.00027397,2]
[311299952,1705049442187,-500.0,0.00027397,2]
[311299953,1705049442197,-401.11191083,0.00027397,2]
[311299954,1705049442210,-500.0,0.00027397,2]
[311299955,1705049442220,-500.0,0.00027397,2]
[311299956,1705049442229,-500.0,0.00027397,2]
[311299957,1705049442239,-500.0,0.00027397,2]
[311299958,1705049442251,-500.0,0.00027397,2]
[311299959,1705049442260,-500.0,0.00027397,2]
[311299960,1705049442269,-500.0,0.00027397,2]
[311299961,1705049442280,-386.69923509,0.00027397,2]
[311299962,1705049442290,-500.0,0.00027397,2]
[311299963,1705049442299,-6997.01,0.00027397,2]
[311299964,1705049442308,-500.0,0.00027397,2]
[311299965,1705049442317,-505.08334126,0.00027397,2]
[311299966,1705049442326,-500.0,0.00027397,2]
[311299967,1705049442335,-500.0,0.00027397,2]
[311299968,1705049442344,-500.0,0.00027397,2]
[311299969,1705049442354,-500.0,0.00027397,2]
[311299970,1705049442363,-500.0,0.00027397,2]
[311299971,1705049442373,-500.0,0.00027397,2]
[311299972,1705049442382,-500.0,0.00027397,2]
[311299973,1705049442391,-500.0,0.00027397,2]
[311299974,1705049442401,-500.0,0.00027397,2]
[311299975,1705049442410,-4022.11,0.00027397,2]
[311299976,1705049442419,-500.0,0.00027397,2]
[311299977,1705049442430,-578.19318326,0.00027397,2]
[311299978,1705049442439,-500.0,0.00027397,2]
[311299979,1705049442450,-500.0,0.00027397,2]
[311299980,1705049442460,-501.81277413,0.00027397,2]
[311299981,1705049442469,-500.0,0.00027397,2]
[311299982,1705049442479,-533.68955845,0.00027397,2]
[311299983,1705049442489,-500.0,0.00027397,2]
[311299984,1705049442505,-500.0,0.00027397,2]
[311299985,1705049442514,-200.23172933,0.00027397,2]
[311299986,1705049442523,-500.0,0.00027397,2]
[311299987,1705049442533,-600.0,0.00027397,2]
[311299988,1705049442543,-511.6283861,0.00027397,2]
[311299989,1705049442553,-502.64347606,0.00027397,2]
[311299990,1705049442562,-500.0,0.00027397,2]
[311299991,1705049442571,-500.0,0.00027397,2]
[311299992,1705049442581,-500.0,0.00027397,2]
[311299993,1705049442590,-419.81188514,0.00027397,2]
[311299994,1705049442599,-753.14,0.00027397,2]
[311299995,1705049442608,-500.0,0.00027397,2]
[311299996,1705049442617,-500.0,0.00027397,2]
[311299997,1705049442628,-500.0,0.00027397,2]
[311299998,1705049442641,-500.66753377,0.00027397,2]
[311299999,1705049442651,-500.0,0.00027397,2]
[311300000,1705049442660,-500.0,0.00027397,2]
[311300001,1705049442668,-500.0,0.00027397,2]
[311300002,1705049442677,-1592.73,0.00027397,2]
[311300003,1705049442685,-500.0,0.00027397,2]
[311300004,1705049442694,-2558.13,0.00027397,2]
[311300005,1705049442704,-346.20588166,0.00027397,2]
[311300006,1705049442713,-500.0,0.00027397,2]
[311300007,1705049442722,-1000.0,0.00027397,2]
[311300008,1705049442731,-10669.38,0.00027397,2]
[311300009,1705049442743,-500.0,0.00027397,2]
[311300010,1705049442752,-500.0,0.00027397,2]
[311300011,1705049442761,-500.0,0.00027397,2]
[311300012,1705049442771,-509.12218011,0.00027397,2]
[311300013,1705049442779,-500.0,0.00027397,2]
[311300014,1705049442788,-500.0,0.00027397,2]
[311300016,1705049442800,-500.0,0.00027397,2]
[311300018,1705049442810,-500.0,0.00027397,2]
[311300019,1705049442819,-505.5212539,0.00027397,2]
[311300020,1705049442827,-500.0,0.00027397,2]
[311300021,1705049442836,-1120.19,0.00027397,2]
[311300022,1705049442846,-451.65400802,0.00027397,2]
[311300023,1705049442855,-500.0,0.00027397,2]
[311300024,1705049442864,-201.86703484,0.00027397,2]
[311300025,1705049442873,-500.0,0.00027397,2]
[311300026,1705049442882,-530.21598729,0.00027397,2]
[311300027,1705049442891,-500.0,0.00027397,2]
[311300029,1705049442985,-500.0,0.00027397,2]
[311300030,1705049442998,-500.0,0.00027397,2]
[311300031,1705049443007,-500.0,0.00027397,2]
[311300032,1705049443016,-500.0,0.00027397,2]
[311300033,1705049443026,-520.82405468,0.00027397,2]
[311300034,1705049443034,-500.0,0.00027397,2]
[311300035,1705049443044,-500.0,0.00027397,2]
[311300036,1705049443053,-500.0,0.00027397,2]
[311300037,1705049443062,-500.0,0.00027397,2]